[Event "Championnat d'Europe de Blitz"]
[Date "2024.12.09"]
[White "Lagarde, Maxime"]
[Black "Vyval, Volodymyr"]
[WhiteElo "2600"]
[BlackElo "2269"]
[Round "2.14"]
[Result "0-1"]
[TimeControl "180+2"]

1. e4 {[%emt 00:19:47] [%clk 00:03:03]} c5 {[%clk 00:03:04]} 2. Nc3 {[%clk
00:03:04]} d6 {[%emt 00:00:03] [%clk 00:03:04]} 3. f4 {[%emt 00:00:01] [%clk
00:03:05]} g6 {[%emt 00:00:01] [%clk 00:03:04]} 4. d4 {[%emt 00:00:02] [%clk
00:03:05]} cxd4 {[%emt 00:00:01] [%clk 00:03:05]} 5. Qxd4 {[%emt 00:00:02] [%clk
00:03:06]} Nf6 {[%clk 00:03:06]} 6. Nf3 {[%emt 00:00:05] [%clk 00:03:03]} Bg7
{[%emt 00:00:04] [%clk 00:03:04]} 7. Qf2 {[%emt 00:00:03] [%clk 00:03:02]} O-O
{[%emt 00:00:04] [%clk 00:03:03]} 8. Bd3 {[%emt 00:00:01] [%clk 00:03:02]} Nc6
{[%emt 00:00:02] [%clk 00:03:03]} 9. Bd2 {[%emt 00:00:11] [%clk 00:02:53]} Bg4
{[%emt 00:00:07] [%clk 00:02:58]} 10. O-O-O {[%emt 00:00:06] [%clk 00:02:49]}
Nb4 {[%emt 00:00:16] [%clk 00:02:44]} 11. Kb1 {[%emt 00:00:03] [%clk 00:02:47]}
Nxd3 {[%emt 00:00:03] [%clk 00:02:44]} 12. cxd3 {[%emt 00:00:01] [%clk
00:02:48]} a6 {[%emt 00:00:04] [%clk 00:02:43]} 13. h3 {[%emt 00:00:01] [%clk
00:02:48]} Bxf3 {[%emt 00:00:03] [%clk 00:02:42]} 14. Qxf3 {[%clk 00:02:48]} b5
{[%emt 00:00:17] [%clk 00:02:28]} 15. g4 {[%emt 00:00:04] [%clk 00:02:46]} Rc8
{[%emt 00:00:10] [%clk 00:02:20]} 16. g5 {[%emt 00:00:09] [%clk 00:02:39]} Nh5
{[%emt 00:00:08] [%clk 00:02:14]} 17. Rc1 {[%emt 00:00:02] [%clk 00:02:39]} Qd7
{[%emt 00:00:22] [%clk 00:01:54]} 18. Nd5 {[%emt 00:00:09] [%clk 00:02:33]} Bd4
{[%emt 00:00:41] [%clk 00:01:14]} 19. Be3 {[%emt 00:00:07] [%clk 00:02:27]} Bxe3
{[%emt 00:00:19] [%clk 00:00:58]} 20. Qxe3 {[%emt 00:00:01] [%clk 00:02:28]} Qb7
{[%emt 00:00:06] [%clk 00:00:54]} 21. f5 {[%emt 00:00:27] [%clk 00:02:03]} e6
{[%emt 00:00:02] [%clk 00:00:55]} 22. Nf6+ {[%emt 00:00:12] [%clk 00:01:53]}
Nxf6 {[%emt 00:00:08] [%clk 00:00:48]} 23. gxf6 {[%emt 00:00:02] [%clk
00:01:53]} Kh8 {[%emt 00:00:04] [%clk 00:00:46]} 24. Qh6 {[%emt 00:00:06] [%clk
00:01:49]} Rxc1+ {[%emt 00:00:04] [%clk 00:00:44]} 25. Rxc1 {[%emt 00:00:02]
[%clk 00:01:49]} Rg8 {[%clk 00:00:46]} 26. fxe6 {[%emt 00:00:09] [%clk
00:01:42]} fxe6 {[%emt 00:00:01] [%clk 00:00:47]} 27. Rf1 {[%emt 00:00:12] [%clk
00:01:32]} Qf7 {[%emt 00:00:01] [%clk 00:00:48]} 28. h4 {[%emt 00:00:15] [%clk
00:01:19]} e5 {[%emt 00:00:08] [%clk 00:00:42]} 29. Qc1 {[%emt 00:00:05] [%clk
00:01:16]} Qd7 {[%emt 00:00:04] [%clk 00:00:40]} 30. Qg5 {[%emt 00:00:12] [%clk
00:01:06]} Rf8 {[%emt 00:00:10] [%clk 00:00:33]} 31. Rf3 {[%emt 00:00:13] [%clk
00:00:54]} Qc7 {[%emt 00:00:06] [%clk 00:00:29]} 32. a3 {[%emt 00:00:08] [%clk
00:00:48]} a5 {[%emt 00:00:02] [%clk 00:00:29]} 33. h5 {[%emt 00:00:03] [%clk
00:00:47]} gxh5 {[%emt 00:00:04] [%clk 00:00:27]} 34. Qf5 {[%emt 00:00:30] [%clk
00:00:20]} Qf7 {[%emt 00:00:10] [%clk 00:00:19]} 35. Kc2 {[%emt 00:00:11] [%clk
00:00:10]} b4 {[%clk 00:00:20]} 36. axb4 {[%clk 00:00:11]} axb4 {[%emt 00:00:01]
[%clk 00:00:21]} 37. Kd2 {[%clk 00:00:12]} Qb3 {[%emt 00:00:03] [%clk 00:00:20]}
38. f7 {[%emt 00:00:03] [%clk 00:00:11]} Qxb2+ {[%clk 00:00:21]} 39. Ke1 {[%emt
00:00:02] [%clk 00:00:11]} Qc1+ {[%emt 00:00:10] [%clk 00:00:13]} 40. Kf2 {[%clk
00:00:12]} Qd2+ {[%emt 00:00:03] [%clk 00:00:14]} 41. Kg3 {[%emt 00:00:02] [%clk
00:00:11]} Qh6 {[%emt 00:00:02] [%clk 00:00:15]} 42. Kh4 {[%emt 00:00:06] [%clk
00:00:07]} Qg6 {[%emt 00:00:02] [%clk 00:00:14]} 43. Qd7 {[%emt 00:00:06] [%clk
00:00:04]} Qg4+ {[%emt 00:00:05] [%clk 00:00:11]} 44. Qxg4 {[%clk 00:00:05]}
hxg4 {[%emt 00:00:01] [%clk 00:00:12]} 45. Kxg4 {[%clk 00:00:05]} Kg7 {[%emt
00:00:01] [%clk 00:00:13]} 46. d4 {[%emt 00:00:03] [%clk 00:00:05]} Rxf7 {[%emt
00:00:02] [%clk 00:00:13]} 47. Rb3 {[%clk 00:00:06]} Rf4+ {[%emt 00:00:09]} 48.
Kg5 {[%emt 00:00:02] [%clk 00:00:05]} h6+ {[%emt 00:00:02] [%clk 00:00:06]} 49.
Kh5 {[%clk 00:00:07]} Rxe4 {[%clk 00:00:07]} 50. Rxb4 {[%emt 00:00:02] [%clk
00:00:07]} Rxd4 {[%clk 00:00:09]} 51. Rb7+ {[%emt 00:00:01] [%clk 00:00:08]} Kf6
{[%clk 00:00:10]} 52. Rd7 {[%emt 00:00:02] [%clk 00:00:08]} Ke6 {[%emt
00:00:02]} 53. Rd8 Rf4 {[%emt 00:00:02] [%clk 00:00:12]} 54. Kxh6 {[%emt
00:00:01] [%clk 00:00:10]} Rf1 {[%clk 00:00:12]} 55. Kg5 {[%clk 00:00:11]} Kd5
{[%emt 00:00:02] [%clk 00:00:13]} 56. Kg4 {[%clk 00:00:11]} e4 {[%emt 00:00:01]
[%clk 00:00:14]} 57. Ra8 {[%clk 00:00:13]} Ke5 {[%emt 00:00:02] [%clk 00:00:14]}
58. Kg3 {[%emt 00:00:01] [%clk 00:00:13]} d5 {[%emt 00:00:02] [%clk 00:00:14]}
59. Kg2 {[%clk 00:00:14]} Rf7 {[%emt 00:00:01] [%clk 00:00:15]} 60. Ra3 {[%clk
00:00:16]} d4 {[%emt 00:00:02] [%clk 00:00:15]} 61. Ra5+ {[%emt 00:00:01] [%clk
00:00:17]} Kf4 {[%clk 00:00:15]} 62. Kf2 {[%clk 00:00:19]} Rh7 {[%emt 00:00:04]
[%clk 00:00:15]} 63. Ra8 {[%clk 00:00:19]} Rh2+ {[%clk 00:00:16]} 64. Kg1 {[%clk
00:00:21]} Rb2 {[%emt 00:00:01] [%clk 00:00:16]} 65. Rh8 {[%emt 00:00:01] [%clk
00:00:22]} e3 {[%emt 00:00:03] [%clk 00:00:16]} 66. Rh4+ {[%emt 00:00:01] [%clk
00:00:22]} Ke5 {[%clk 00:00:17]} 67. Kf1 {[%emt 00:00:01] [%clk 00:00:23]} d3
{[%emt 00:00:02] [%clk 00:00:17]} 68. Rc4 {[%emt 00:00:02] [%clk 00:00:24]} Kd5
{[%emt 00:00:04] [%clk 00:00:16]} 69. Ra4 {[%clk 00:00:25]} Rb1+ {[%emt
00:00:02] [%clk 00:00:15]} 70. Kg2 {[%clk 00:00:27]} d2 {[%emt 00:00:03] [%clk
00:00:16]} 0-1

[Site "Europe Echecs"]

[Event "Championnat d'Europe de Blitz"]
[Date "2024.12.09"]
[White "Alonso Rosell, Alvar"]
[Black "Druckenthaner, Andreas"]
[WhiteElo "2532"]
[BlackElo "2206"]
[Round "2.15"]
[Result "1-0"]
[TimeControl "180+2"]

1. Nf3 {[%clk 00:03:03]} f5 {[%emt 00:00:04] [%clk 00:03:02]} 2. d4 {[%clk
00:03:03]} Nf6 {[%emt 00:00:02] [%clk 00:03:02]} 3. e3 {[%emt 00:00:02] [%clk
00:03:04]} g6 {[%emt 00:00:05] [%clk 00:02:59]} 4. Be2 {[%emt 00:00:03] [%clk
00:03:02]} Bg7 {[%emt 00:00:02] [%clk 00:03:00]} 5. c4 {[%emt 00:00:03] [%clk
00:03:01]} O-O {[%emt 00:00:03] [%clk 00:02:59]} 6. O-O {[%emt 00:00:08] [%clk
00:02:55]} d6 {[%emt 00:00:01] [%clk 00:03:00]} 7. b4 {[%emt 00:00:02] [%clk
00:02:55]} e5 {[%emt 00:00:12] [%clk 00:02:50]} 8. Bb2 {[%emt 00:00:07] [%clk
00:02:51]} e4 {[%emt 00:00:05] [%clk 00:02:46]} 9. Nfd2 {[%emt 00:00:02] [%clk
00:02:51]} Nc6 {[%emt 00:00:04] [%clk 00:02:44]} 10. Qb3 {[%emt 00:00:08] [%clk
00:02:44]} Kh8 {[%emt 00:00:02] [%clk 00:02:44]} 11. Nc3 {[%emt 00:00:11] [%clk
00:02:36]} Ne7 {[%emt 00:00:05] [%clk 00:02:41]} 12. a4 {[%emt 00:00:14] [%clk
00:02:24]} g5 {[%emt 00:00:04] [%clk 00:02:39]} 13. f3 {[%emt 00:00:23] [%clk
00:02:03]} exf3 {[%emt 00:00:08] [%clk 00:02:33]} 14. Rxf3 {[%emt 00:00:05]
[%clk 00:02:00]} Ng6 {[%emt 00:00:07] [%clk 00:02:28]} 15. Bd3 {[%emt 00:00:06]
[%clk 00:01:56]} Nh4 {[%emt 00:00:10] [%clk 00:02:20]} 16. Rff1 {[%emt 00:00:17]
[%clk 00:01:41]} Ng4 {[%emt 00:00:05] [%clk 00:02:16]} 17. Rae1 {[%emt 00:00:15]
[%clk 00:01:30]} f4 {[%emt 00:00:10] [%clk 00:02:07]} 18. Nd1 {[%emt 00:00:06]
[%clk 00:01:25]} fxe3 {[%emt 00:00:13] [%clk 00:01:56]} 19. Nxe3 {[%emt
00:00:03] [%clk 00:01:25]} Nxe3 {[%emt 00:00:11] [%clk 00:01:46]} 20. Rxe3
{[%emt 00:00:02] [%clk 00:01:25]} Rxf1+ {[%emt 00:00:09] [%clk 00:01:39]} 21.
Nxf1 {[%emt 00:00:06] [%clk 00:01:21]} Bf5 {[%emt 00:00:09] [%clk 00:01:32]} 22.
g3 {[%emt 00:00:23] [%clk 00:01:01]} Bxd3 {[%emt 00:00:05] [%clk 00:01:29]} 23.
Qxd3 {[%emt 00:00:04] [%clk 00:00:59]} Ng6 {[%emt 00:00:04] [%clk 00:01:27]} 24.
Bc3 {[%emt 00:00:12] [%clk 00:00:49]} Qd7 {[%emt 00:00:07] [%clk 00:01:20]} 25.
Qe4 {[%emt 00:00:08] [%clk 00:00:45]} Qxa4 {[%emt 00:00:19] [%clk 00:01:03]} 26.
Qxb7 {[%emt 00:00:04] [%clk 00:00:43]} Rf8 {[%emt 00:00:01] [%clk 00:01:04]} 27.
Rf3 {[%emt 00:00:07] [%clk 00:00:38]} Rxf3 {[%emt 00:00:07] [%clk 00:01:00]} 28.
Qxf3 {[%emt 00:00:01] [%clk 00:00:38]} Qc2 {[%emt 00:00:03] [%clk 00:00:59]} 29.
c5 {[%emt 00:00:16] [%clk 00:00:25]} d5 {[%emt 00:00:08] [%clk 00:00:53]} 30.
Qe3 {[%emt 00:00:05] [%clk 00:00:21]} h6 {[%emt 00:00:04] [%clk 00:00:51]} 31.
Qd2 {[%emt 00:00:04] [%clk 00:00:20]} Qe4 {[%emt 00:00:04] [%clk 00:00:49]} 32.
b5 {[%emt 00:00:04] [%clk 00:00:18]} h5 {[%emt 00:00:03] [%clk 00:00:48]} 33.
Qe3 {[%emt 00:00:04] [%clk 00:00:16]} Qc2 {[%emt 00:00:05] [%clk 00:00:45]} 34.
Qd2 {[%emt 00:00:02] [%clk 00:00:16]} Qe4 {[%emt 00:00:01] [%clk 00:00:46]} 35.
Qd1 {[%emt 00:00:05] [%clk 00:00:13]} g4 {[%emt 00:00:05] [%clk 00:00:44]} 36.
Qd2 {[%emt 00:00:04] [%clk 00:00:10]} Kh7 {[%emt 00:00:02] [%clk 00:00:44]} 37.
Qe3 {[%emt 00:00:04] [%clk 00:00:09]} Qc2 {[%emt 00:00:02] [%clk 00:00:43]} 38.
Ba1 {[%emt 00:00:05] [%clk 00:00:06]} Bh6 {[%emt 00:00:05] [%clk 00:00:40]} 39.
Qe6 {[%emt 00:00:02] [%clk 00:00:06]} Qd1 {[%emt 00:00:05] [%clk 00:00:36]} 40.
Bc3 {[%emt 00:00:03] [%clk 00:00:06]} Bg7 {[%emt 00:00:02] [%clk 00:00:36]} 41.
Qxd5 {[%emt 00:00:02] [%clk 00:00:06]} Qe2 {[%emt 00:00:04] [%clk 00:00:34]} 42.
Qxh5+ {[%emt 00:00:02] [%clk 00:00:06]} Bh6 {[%emt 00:00:01] [%clk 00:00:35]}
43. Qf5 {[%emt 00:00:02] [%clk 00:00:06]} Kg7 {[%emt 00:00:03] [%clk 00:00:35]}
44. d5+ {[%clk 00:00:07]} Kh7 {[%emt 00:00:01] [%clk 00:00:35]} 45. Qf7+ {[%clk
00:00:08]} 1-0

[Site "Europe Echecs"]

[Event "Championnat d'Europe de Blitz"]
[Date "2024.12.09"]
[White "Podlesnik, Bogdan"]
[Black "Pantsulaia, Levan"]
[WhiteElo "2288"]
[BlackElo "2522"]
[Round "2.16"]
[Result "0-1"]
[TimeControl "180+2"]

1. e4 {[%emt 00:00:03] [%clk 00:03:02]} c5 {[%clk 00:03:04]} 2. Nc3 {[%clk
00:03:03]} e6 {[%emt 00:00:05] [%clk 00:02:59]} 3. Nf3 {[%emt 00:00:02] [%clk
00:03:04]} a6 {[%emt 00:00:01] [%clk 00:03:00]} 4. d4 {[%clk 00:03:05]} cxd4
{[%emt 00:00:01] [%clk 00:03:01]} 5. Nxd4 {[%clk 00:03:07]} b5 {[%emt 00:00:01]
[%clk 00:03:02]} 6. Bd3 {[%emt 00:00:01] [%clk 00:03:08]} Bb7 {[%emt 00:00:02]
[%clk 00:03:02]} 7. O-O {[%emt 00:00:02] [%clk 00:03:08]} b4 {[%emt 00:00:01]
[%clk 00:03:02]} 8. Nce2 {[%emt 00:00:01] [%clk 00:03:08]} Nf6 {[%emt 00:00:03]
[%clk 00:03:01]} 9. Ng3 {[%emt 00:00:44] [%clk 00:02:27]} h5 {[%emt 00:00:06]
[%clk 00:02:57]} 10. Re1 {[%emt 00:00:20] [%clk 00:02:09]} h4 {[%emt 00:00:02]
[%clk 00:02:57]} 11. Nf1 {[%clk 00:02:11]} h3 {[%emt 00:00:03] [%clk 00:02:56]}
12. g3 {[%emt 00:00:01] [%clk 00:02:12]} Qb6 {[%emt 00:00:29] [%clk 00:02:29]}
13. Nb3 {[%emt 00:00:08] [%clk 00:02:06]} a5 {[%emt 00:00:04] [%clk 00:02:27]}
14. Be3 {[%emt 00:00:01] [%clk 00:02:07]} Qc7 {[%clk 00:02:28]} 15. Nbd2 {[%emt
00:00:19] [%clk 00:01:50]} Bc5 {[%emt 00:00:16] [%clk 00:02:14]} 16. Qe2 {[%emt
00:00:05] [%clk 00:01:47]} d6 {[%emt 00:00:08] [%clk 00:02:09]} 17. f3 {[%emt
00:00:02] [%clk 00:01:46]} Nbd7 {[%emt 00:00:02] [%clk 00:02:09]} 18. g4 {[%emt
00:00:06] [%clk 00:01:43]} Ne5 {[%emt 00:00:06] [%clk 00:02:05]} 19. Ng3 {[%emt
00:00:06] [%clk 00:01:38]} Qb6 {[%emt 00:00:16] [%clk 00:01:51]} 20. Bxc5 {[%emt
00:00:03] [%clk 00:01:37]} Qxc5+ {[%emt 00:00:02] [%clk 00:01:52]} 21. Qf2
{[%emt 00:00:01] [%clk 00:01:36]} Rc8 {[%emt 00:00:09] [%clk 00:01:46]} 22. Qxc5
{[%emt 00:00:42] [%clk 00:00:56]} Rxc5 {[%emt 00:00:11] [%clk 00:01:37]} 23. Kf2
{[%emt 00:00:04] [%clk 00:00:54]} Kd7 {[%emt 00:01:05] [%clk 00:00:35]} 24. Nb3
{[%emt 00:00:03] [%clk 00:00:53]} Nxd3+ {[%emt 00:00:01] [%clk 00:00:36]} 25.
cxd3 {[%clk 00:00:54]} Rc2+ {[%clk 00:00:37]} 26. Re2 {[%clk 00:00:56]} Rxe2+
{[%emt 00:00:01] [%clk 00:00:37]} 27. Kxe2 {[%clk 00:00:57]} a4 {[%emt 00:00:01]
[%clk 00:00:39]} 28. Nd4 {[%emt 00:00:04] [%clk 00:00:55]} Rc8 {[%emt 00:00:02]
[%clk 00:00:38]} 29. Kd2 {[%emt 00:00:02] [%clk 00:00:55]} Ba6 {[%emt 00:00:15]
[%clk 00:00:25]} 30. Nc2 {[%emt 00:00:03] [%clk 00:00:54]} Rb8 {[%clk 00:00:27]}
31. b3 {[%emt 00:00:09] [%clk 00:00:47]} a3 {[%emt 00:00:08] [%clk 00:00:20]}
32. Rc1 {[%emt 00:00:05] [%clk 00:00:44]} g6 {[%emt 00:00:05] [%clk 00:00:18]}
33. Nf1 {[%emt 00:00:11] [%clk 00:00:34]} Nh7 {[%emt 00:00:02] [%clk 00:00:17]}
34. Nd4 {[%emt 00:00:09] [%clk 00:00:28]} e5 {[%emt 00:00:03] [%clk 00:00:16]}
35. Nc2 {[%emt 00:00:09] [%clk 00:00:21]} Ng5 {[%clk 00:00:17]} 36. Ke3 {[%emt
00:00:01] [%clk 00:00:22]} Rc8 {[%emt 00:00:02] [%clk 00:00:17]} 37. Nd2 {[%emt
00:00:05] [%clk 00:00:19]} Rc3 {[%emt 00:00:01] [%clk 00:00:18]} 38. Nc4 {[%emt
00:00:04] [%clk 00:00:16]} Bxc4 {[%emt 00:00:04] [%clk 00:00:16]} 39. bxc4
{[%clk 00:00:18]} Kc7 {[%emt 00:00:09] [%clk 00:00:10]} 40. f4 {[%clk 00:00:19]}
exf4+ {[%emt 00:00:03] [%clk 00:00:09]} 41. Kxf4 {[%emt 00:00:01] [%clk
00:00:20]} Ne6+ {[%clk 00:00:11]} 42. Ke3 {[%emt 00:00:01] [%clk 00:00:21]} Nc5
{[%emt 00:00:02] [%clk 00:00:11]} 43. Rf1 {[%emt 00:00:08] [%clk 00:00:15]}
Rxd3+ {[%emt 00:00:03] [%clk 00:00:09]} 44. Ke2 {[%emt 00:00:02] [%clk
00:00:15]} f6 {[%emt 00:00:05] [%clk 00:00:06]} 45. Nxb4 {[%emt 00:00:01] [%clk
00:00:16]} Rd4 {[%emt 00:00:02] [%clk 00:00:06]} 46. Nd5+ {[%clk 00:00:18]} Kc6
{[%emt 00:00:02] [%clk 00:00:07]} 47. Nxf6 {[%emt 00:00:01] [%clk 00:00:19]}
Rxc4 {[%emt 00:00:01] [%clk 00:00:08]} 48. Kd2 {[%emt 00:00:01] [%clk 00:00:19]}
Rb4 {[%emt 00:00:02] [%clk 00:00:08]} 49. Rf3 {[%emt 00:00:03] [%clk 00:00:18]}
Rb2+ {[%emt 00:00:01] [%clk 00:00:09]} 50. Kc1 {[%clk 00:00:19]} Rxh2 {[%emt
00:00:03] [%clk 00:00:08]} 51. Rxa3 {[%emt 00:00:01] [%clk 00:00:20]} Ne6 {[%emt
00:00:03] [%clk 00:00:07]} 52. Ra8 {[%emt 00:00:03] [%clk 00:00:19]} Nf4 {[%emt
00:00:01] [%clk 00:00:08]} 53. Nd5 {[%emt 00:00:02] [%clk 00:00:19]} Nxd5 {[%emt
00:00:05] [%clk 00:00:05]} 54. exd5+ {[%emt 00:00:01] [%clk 00:00:20]} Kxd5
{[%emt 00:00:01] [%clk 00:00:07]} 55. Rh8 {[%clk 00:00:21]} Ke4 {[%emt 00:00:01]
[%clk 00:00:07]} 56. a4 {[%clk 00:00:23]} Kf4 {[%emt 00:00:01] [%clk 00:00:08]}
57. a5 {[%emt 00:00:02] [%clk 00:00:22]} Kxg4 {[%emt 00:00:01] [%clk 00:00:08]}
58. a6 {[%clk 00:00:24]} Ra2 {[%emt 00:00:01] [%clk 00:00:09]} 59. Kb1 {[%emt
00:00:02] [%clk 00:00:25]} Rxa6 {[%emt 00:00:01] [%clk 00:00:10]} 0-1

[Site "Europe Echecs"]

[Event "Championnat d'Europe de Blitz"]
[Date "2024.12.09"]
[White "Muradli, Mahammad"]
[Black "Maier, Christian"]
[WhiteElo "2588"]
[BlackElo "2235"]
[Round "2.17"]
[Result "1-0"]
[TimeControl "180+2"]

1. Nf3 {[%emt 00:09:53] [%clk 00:03:03]} Nc6 {[%emt 00:00:01] [%clk 00:03:03]}
2. d4 {[%emt 00:00:02] [%clk 00:03:03]} d6 {[%emt 00:00:02] [%clk 00:03:03]} 3.
d5 {[%emt 00:00:02] [%clk 00:03:02]} Ne5 {[%emt 00:00:01] [%clk 00:03:04]} 4.
Nxe5 {[%emt 00:00:04] [%clk 00:03:00]} dxe5 {[%emt 00:00:01] [%clk 00:03:05]} 5.
c4 {[%emt 00:00:04] [%clk 00:02:58]} Nf6 {[%emt 00:00:06] [%clk 00:03:02]} 6.
Nc3 {[%emt 00:00:05] [%clk 00:02:54]} e6 {[%emt 00:00:02] [%clk 00:03:02]} 7. g3
{[%emt 00:00:29] [%clk 00:02:27]} exd5 {[%emt 00:00:12] [%clk 00:02:52]} 8. cxd5
{[%emt 00:00:01] [%clk 00:02:28]} Bc5 {[%emt 00:00:05] [%clk 00:02:47]} 9. Bg2
{[%emt 00:00:05] [%clk 00:02:26]} O-O {[%emt 00:00:03] [%clk 00:02:47]} 10. O-O
{[%emt 00:00:03] [%clk 00:02:26]} h6 {[%emt 00:00:05] [%clk 00:02:44]} 11. b3
{[%emt 00:00:24] [%clk 00:02:04]} Re8 {[%emt 00:00:03] [%clk 00:02:42]} 12. Bb2
{[%clk 00:02:05]} e4 {[%emt 00:00:09] [%clk 00:02:35]} 13. e3 {[%emt 00:00:25]
[%clk 00:01:43]} Bf5 {[%emt 00:00:05]} 14. Rc1 {[%clk 00:01:42]} Qe7 {[%emt
00:00:12] [%clk 00:02:24]} 15. Qc2 {[%emt 00:00:08] [%clk 00:01:36]} Rad8 {[%emt
00:00:44] [%clk 00:01:43]} 16. Na4 {[%clk 00:01:37]} Bd6 {[%emt 00:00:02] [%clk
00:01:43]} 17. Bxf6 {[%emt 00:00:03] [%clk 00:01:36]} Qxf6 {[%emt 00:00:02]
[%clk 00:01:43]} 18. Nc3 {[%emt 00:00:03] [%clk 00:01:36]} a6 {[%emt 00:00:14]
[%clk 00:01:30]} 19. Bxe4 {[%emt 00:00:37] [%clk 00:01:00]} Bxe4 {[%emt
00:00:21] [%clk 00:01:12]} 20. Nxe4 {[%emt 00:00:01] [%clk 00:01:01]} Qg6 {[%clk
00:01:13]} 21. Nc5 {[%emt 00:00:27] [%clk 00:00:36]} Qxc2 {[%emt 00:00:57]} 22.
Rxc2 {[%clk 00:00:36]} Rb8 {[%emt 00:00:06] [%clk 00:00:16]} 23. Nd3 {[%emt
00:00:14] [%clk 00:00:23]} f5 {[%emt 00:00:08] [%clk 00:00:11]} 24. Nb2 {[%emt
00:00:05] [%clk 00:00:20]} b5 {[%emt 00:00:03] [%clk 00:00:10]} 25. Nd3 {[%emt
00:00:01] [%clk 00:00:21]} Kf7 {[%emt 00:00:04] [%clk 00:00:08]} 26. Rfc1 {[%emt
00:00:04] [%clk 00:00:19]} Re7 {[%emt 00:00:02] [%clk 00:00:08]} 27. Nc5 {[%emt
00:00:01] [%clk 00:00:20]} a5 {[%emt 00:00:05] [%clk 00:00:05]} 28. Ne6 {[%emt
00:00:02] [%clk 00:00:20]} Rb7 {[%emt 00:00:02] [%clk 00:00:05]} 29. Nd8+ {[%emt
00:00:01] [%clk 00:00:21]} 1-0

[Site "Europe Echecs"]

[Event "Championnat d'Europe de Blitz"]
[Date "2024.12.09"]
[White "Trapp, Maximilian"]
[Black "Dardha, Daniel"]
[WhiteElo "2050"]
[BlackElo "2639"]
[Round "2.18"]
[Result "0-1"]
[TimeControl "180+2"]

1. d4 {[%emt 00:19:34] [%clk 00:03:03]} Nf6 {[%emt 00:00:02] [%clk 00:03:03]} 2.
Nf3 {[%emt 00:00:01] [%clk 00:03:04]} b6 {[%clk 00:03:04]} 3. Bf4 {[%emt
00:00:01] [%clk 00:03:04]} Bb7 {[%emt 00:00:02] [%clk 00:03:04]} 4. e3 {[%emt
00:00:01] [%clk 00:03:05]} Nh5 {[%emt 00:00:01] [%clk 00:03:04]} 5. Bg3 {[%emt
00:00:01] [%clk 00:03:06]} g6 {[%emt 00:00:06] [%clk 00:03:01]} 6. Nbd2 {[%emt
00:00:01] [%clk 00:03:06]} d6 {[%emt 00:00:05] [%clk 00:02:58]} 7. Be2 {[%emt
00:00:02] [%clk 00:03:07]} Nd7 {[%emt 00:00:01] [%clk 00:02:58]} 8. a4 {[%emt
00:00:04] [%clk 00:03:06]} Nxg3 {[%emt 00:00:03] [%clk 00:02:56]} 9. hxg3 {[%emt
00:00:02] [%clk 00:03:06]} a6 {[%emt 00:00:02] [%clk 00:02:56]} 10. c3 {[%emt
00:00:08] [%clk 00:03:01]} Bg7 {[%emt 00:00:01] [%clk 00:02:56]} 11. Qb3 {[%emt
00:00:01] [%clk 00:03:02]} e6 {[%emt 00:00:04] [%clk 00:02:54]} 12. a5 {[%emt
00:00:12] [%clk 00:02:52]} O-O {[%emt 00:00:11] [%clk 00:02:45]} 13. axb6 {[%emt
00:00:08] [%clk 00:02:47]} cxb6 {[%emt 00:00:10] [%clk 00:02:36]} 14. O-O {[%emt
00:00:08] [%clk 00:02:41]} Qc7 {[%emt 00:00:09] [%clk 00:02:29]} 15. Rfe1 {[%emt
00:00:11] [%clk 00:02:33]} Rfd8 {[%emt 00:00:03] [%clk 00:02:27]} 16. e4 {[%emt
00:00:19] [%clk 00:02:16]} h6 {[%emt 00:00:08] [%clk 00:02:21]} 17. Bd3 {[%emt
00:00:04] [%clk 00:02:15]} Nf6 {[%emt 00:00:11] [%clk 00:02:11]} 18. e5 {[%emt
00:00:13] [%clk 00:02:04]} dxe5 {[%emt 00:00:09] [%clk 00:02:04]} 19. Nxe5
{[%emt 00:00:02] [%clk 00:02:05]} Bd5 {[%emt 00:00:04] [%clk 00:02:01]} 20. Bc4
{[%emt 00:00:15] [%clk 00:01:53]} Qb7 {[%emt 00:00:13] [%clk 00:01:50]} 21. Bxd5
{[%emt 00:00:07] [%clk 00:01:48]} Nxd5 {[%emt 00:00:02] [%clk 00:01:50]} 22.
Ndf3 {[%emt 00:00:07] [%clk 00:01:43]} b5 {[%emt 00:00:24] [%clk 00:01:27]} 23.
Nd3 {[%emt 00:00:06] [%clk 00:01:39]} a5 {[%emt 00:00:12] [%clk 00:01:18]} 24.
Nc5 {[%emt 00:00:22] [%clk 00:01:18]} Qc6 {[%emt 00:00:02] [%clk 00:01:18]} 25.
Ne5 {[%emt 00:00:08] [%clk 00:01:12]} Bxe5 {[%emt 00:00:08] [%clk 00:01:12]} 26.
Rxe5 {[%emt 00:00:02] [%clk 00:01:13]} b4 {[%emt 00:00:01] [%clk 00:01:13]} 27.
Qc2 {[%emt 00:00:19] [%clk 00:00:55]} Kg7 {[%emt 00:00:30] [%clk 00:00:45]} 28.
Rae1 {[%emt 00:00:01] [%clk 00:00:56]} Nf6 {[%emt 00:00:09] [%clk 00:00:38]} 29.
Qc1 {[%emt 00:00:29] [%clk 00:00:29]} Ng8 {[%emt 00:00:25] [%clk 00:00:15]} 30.
Qf4 {[%emt 00:00:02] [%clk 00:00:29]} Rd5 {[%emt 00:00:03] [%clk 00:00:14]} 31.
Qf3 {[%emt 00:00:08] [%clk 00:00:23]} Rad8 {[%emt 00:00:06] [%clk 00:00:10]} 32.
R1e3 {[%emt 00:00:09] [%clk 00:00:16]} Qc8 {[%emt 00:00:02] [%clk 00:00:10]} 33.
g4 {[%emt 00:00:03] [%clk 00:00:15]} Nf6 {[%emt 00:00:03] [%clk 00:00:09]} 34.
Nxe6+ {[%emt 00:00:06] [%clk 00:00:11]} fxe6 {[%emt 00:00:01] [%clk 00:00:10]}
35. Rxe6 {[%emt 00:00:01] [%clk 00:00:12]} Rf8 {[%emt 00:00:08] [%clk 00:00:04]}
36. Re7+ {[%emt 00:00:01] [%clk 00:00:13]} Rf7 {[%emt 00:00:01] [%clk 00:00:06]}
37. R7e6 {[%emt 00:00:05] [%clk 00:00:10]} Qd7 {[%emt 00:00:03] [%clk 00:00:04]}
38. R6e5 {[%emt 00:00:07] [%clk 00:00:05]} Rxe5 {[%emt 00:00:02] [%clk
00:00:04]} 39. dxe5 {[%clk 00:00:07]} Nxg4 {[%emt 00:00:02] [%clk 00:00:05]} 40.
Qe2 {[%emt 00:00:02] [%clk 00:00:06]} Nxe3 {[%emt 00:00:01] [%clk 00:00:06]} 41.
Qxe3 {[%emt 00:00:05] [%clk 00:00:04]} Qe6 {[%clk 00:00:07]} 0-1

[Site "Europe Echecs"]